Cogmind - Beta 11 X8 @@@ ROGUE MODE // 2021.11.08 @ 21:56:58 Player: Giant Eel Result: Destroyed by Y-54 Guardian with Gatling Laser Performance ------------- Evolutions (4) 2000 Regions Visited (7) 1400 Robots Destroyed (56) 280 Value Destroyed (2076) 2076 Prototype IDs (7) 140 Alien Tech Used (0) 0 Bonus (234) 234 TOTAL SCORE: 6130 Bonus ------- Follower Combat Kills 249 Friendly Fire -15 Cogmind --------- Core Integrity 0/850 Matter 300/300 Energy 375/375 System Corruption 1% Temperature Cool (15) Movement Walking (120) Location -6/Extension Parts ------- > --- POWER (2) -------- Light Nuclear Core Neutrino Core > --- PROPULSION (5) --- Carbon-fiber Leg Carbon-fiber Leg Improved Carbon-fiber Leg Flexi-carbon Leg > --- UTILITY (6) ------ Advanced Heat Sink Improved Light Armor Plating Improved Light Armor Plating > --- WEAPON (2) ------- Beamcaster Ripper > --- INVENTORY (5) ---- Light EM Pulse Cannon Peak State ------------ > --- POWER ------------ Deuterium Engine Improved Deuterium Engine > --- PROPULSION ------- Improved Gravmag System Improved Gravmag System > --- UTILITY ---------- Improved Heavy Armor Plating Improved Heavy Armor Plating Force Field > --- WEAPON ----------- Power Maul > --- INVENTORY -------- Light Nuclear Core Light Nuclear Core VTOL Module Light EM Pulse Cannon [Rating: 47] Favorites ----------- Power Improved Ion Engine Engine Improved Ion Engine Power Core Light Nuclear Core Propulsion Improved Treads Treads Improved Treads Leg Flexi-carbon Leg Hover Unit Improved Gravmag System Flight Unit Flight Unit Utility ECM Suite Device ECM Suite Storage Huge Storage Unit Protection Hardened Light Armor Plating Weapon EM Shotgun Energy Gun EM Shotgun Energy Cannon Light EM Pulse Cannon Ballistic Gun Heavy Assault Rifle Launcher Rocket Launcher Impact Weapon Power Maul Slashing Weapon Ripper Build | -11 -10 -9 -9 -8 -7 -6 -6 ------- Run | Scr Mat Mat Sto Mat Fac Fac Ext Slots Evolved 8 | . . 2 . 2 2 2 . Power 1 | . . . . . 1 . . Propulsion 3 | . . . . 1 1 1 . Utility 4 | . . 2 . 1 . 1 . Weapon . | . . . . . . . . Parts Attached 84 | . 9 18 12 15 7 6 17 Power 15 | . 1 3 1 3 1 1 5 Engine 11 | . 1 3 1 2 1 1 2 Core 4 | . . . . 1 . . 3 Reactor . | . . . . . . . . Propulsion 25 | . 4 1 2 7 3 2 6 Treads 10 | . 4 1 2 2 . . 1 Leg 4 | . . . . . . . 4 Wheel . | . . . . . . . . Hover 2 | . . . . . . 2 . Flight 9 | . . . . 5 3 . 1 Utility 22 | . 2 6 4 4 . 3 3 Device 8 | . 1 2 . 3 . 1 1 Storage 2 | . 1 1 . . . . . Processor . | . . . . . . . . Hackware . | . . . . . . . . Protection 12 | . . 3 4 1 . 2 2 Artifact . | . . . . . . . . Weapon 22 | . 2 8 5 1 3 . 3 Energy Gun 11 | . 2 6 1 . 1 . 1 Energy Cannon 2 | . . . . . 1 . 1 Ballistic Gun 5 | . . 1 3 1 . . . Ballistic Cannon . | . . . . . . . . Launcher 2 | . . 1 1 . . . . Special Weapon . | . . . . . . . . Impact Weapon 1 | . . . . . 1 . . Slashing Weapon 1 | . . . . . . . 1 Piercing Weapon . | . . . . . . . . Special Melee Weapon . | . . . . . . . . Unidentified Prototypes 3 | . . 1 . 1 1 . . Parts Lost 34 | . . 4 4 9 5 . 12 Power 6 | . . . . 1 1 . 4 Propulsion 13 | . . . 2 4 3 . 4 Utility 7 | . . 1 . 3 . . 3 Weapon 8 | . . 3 2 1 1 . 1 Highest Loss Streak 10 | . . 2 2 5 5 . 10 Average Slot Usage (%) 80 | . 98 96 99 78 30 22 40 Engine 9 | . 14 11 11 7 5 4 5 Treads 16 | . 25 22 22 15 . . 1 Hover 1 | . . . . . . 2 6 Flight 1 | . . . . 10 17 . . Device 12 | . 13 23 11 11 . 3 4 Storage 8 | . 14 11 11 6 . . . Protection 11 | . . 6 21 14 . 4 6 Energy Gun 7 | . 2 21 5 . 3 . . Ballistic Gun 7 | . 24 . 14 8 . . . Naked Turns 53 | . . . . 4 . . 49 Heaviest Build 109 | 12 33 102 106 109 9 45 59 Greatest Support 69 | 20 46 46 46 69 12 20 68 Greatest Overweight (x) 27 | . 1 2 4 27 2 14 3 Average Overweight (x) . | . . 1 2 . . 1 1 Largest Inventory Capacity 25 | . 15 25 25 25 5 5 5 Average Capacity 18 | . 14 22 25 18 5 5 5 Most Carried 22 | . 7 19 22 20 4 3 4 Average Carried 11 | . 2 13 19 13 2 3 1 Final Capacity 25 | 8 15 25 25 5 5 5 5 Final Carried 20 | 6 7 19 20 5 3 3 1 Class Distribution -------------------- 82% | Mutant 12% | Commander-Mutant Dominant Class ---------------- Mutant | -10/Materials Mutant | -9/Materials Mutant | -9/Storage Mutant | -8/Materials Mutant | -7/Factory Mutant | -6/Factory Mutant | -6/Extension Resources | -11 -10 -9 -9 -8 -7 -6 -6 ----------- Run | Scr Mat Mat Sto Mat Fac Fac Ext Matter Collected 1393 | 200 152 204 309 273 22 41 192 Remotely . | . . . . . . . . Salvage Created 2290 | . 234 801 642 190 22 41 360 Parts 147 | . 15 52 48 15 . 1 16 Haulers Intercepted . | . . . . . . . . Recyclers Shooed . | . . . . . . . . Parts Field Recycled . | . . . . . . . . Retrieved Matter . | . . . . . . . . Parts Self-Destructed . | . . . . . . . . Prevented . | . . . . . . . . Kills | -11 -10 -9 -9 -8 -7 -6 -6 ------- Run | Scr Mat Mat Sto Mat Fac Fac Ext Combat Hostiles Destroyed 51 | . 6 15 13 7 1 1 8 Melee 4 | . . . . . . . 4 Guns 37 | . 6 14 12 5 . . . Cannons 2 | . . . . . . . 2 AOE 3 | . . . 1 2 . . . Classes Destroyed 6 | . 1 2 . 2 . 1 . Worker 1 | . . . . 1 . . . Watcher 4 | . . 2 1 1 . . . Swarmer 8 | . . . . 3 1 . 4 Grunt 27 | . 6 9 8 3 . . 1 Sentry 15 | . . 6 5 1 . . 3 Programmer 1 | . . . . . . 1 . Best Kill Streak 5 | . 5 3 3 5 1 1 3 Combat Bots Only 5 | . 5 3 3 4 1 1 3 Max Kills in Single Turn 2 | . 1 1 1 2 1 1 1 Gunslinging . | . . . . . . . . Exploded 1 | . . . 1 1 . . . Melee 1 | . . . . . . . 1 Uniques/NPCs Destroyed . | . . . . . . . . Combat | -11 -10 -9 -9 -8 -7 -6 -6 -------- Run | Scr Mat Mat Sto Mat Fac Fac Ext Damage Taken 6533 | . 218 691 838 1183 709 259 2635 Core 1696 | . 31 71 66 190 486 97 755 Absorbed by Shields 681 | . . . . 60 . 39 582 Core Remaining (%) 69 | 100 87 . 65 65 30 . . Volleys Fired 131 | . 17 40 49 15 . . 10 Largest 2 | . 2 2 2 2 . . 1 Hottest 90 | . 40 90 68 56 . . 75 Shots Fired 235 | . 34 66 98 27 . . 10 Gun 222 | . 34 66 95 22 . . 5 Cannon 5 | . . . . . . . 5 Launcher 8 | . . . 3 5 . . . Special . | . . . . . . . . Kinetic 120 | . 34 3 61 22 . . . Thermal 5 | . . . . . . . 5 Explosive 8 | . . . 3 5 . . . Electromagnetic 102 | . . 63 34 . . . 5 Robot Hit Streak 12 | . 6 12 12 5 . . 3 Robot Miss Streak 4 | . 4 4 4 1 . . 2 Penetration Max . | . . . . . . . . Secondary Targets 6 | . 1 1 2 2 . . . Max Gunslinging Chain 1 | . 1 1 1 1 . . . Shots Hit Robots 190 | . 22 47 59 19 4 6 33 Core Hits 89 | . 12 33 23 13 . . 8 Critical Kills . | . . . . . . . . Critical Parts Destroyed 3 | . . . . . 1 . 2 Critical Strikes 3 | . . . . . 1 . 2 Smash 3 | . . . . . 1 . 2 Melee Attacks 56 | . . . . . 11 8 37 Impact 50 | . . . . . 11 8 31 Slashing 6 | . . . . . . . 6 Piercing . | . . . . . . . . Sneak Attacks . | . . . . . . . . Combat Hostiles . | . . . . . . . . Follow-up Attacks . | . . . . . . . . Damage Inflicted 4014 | . 273 727 960 714 144 207 989 Guns 2159 | . 273 727 867 251 . . 41 Cannons 54 | . . . . . . . 54 Explosions 531 | . . . 68 463 . . . Melee 1231 | . . . . . 144 207 880 Ramming 39 | . . . 25 . . . 14 Kinetic 1082 | . 273 26 532 251 . . . Thermal 182 | . . . 28 113 . . 41 Explosive 390 | . . . 40 350 . . . Electromagnetic 1090 | . . 701 335 . . . 54 Impact 1101 | . . . . . 144 207 750 Slashing 130 | . . . . . . . 130 Piercing . | . . . . . . . . Highest Corruption 1 | . . . . . . 1 1 Average Corruption 1 | . . . . . . 1 1 Corruption Purged . | . . . . . . . . Effects 4 | . . . . . . . 4 Message Errors 3 | . . . . . . . 3 Energy Discharges 1 | . . . . . . . 1 Overload Shots . | . . . . . . . . Overflow Damage 275 | . . . . 62 53 66 94 Projectiles . | . . . . . . . . Explosions 62 | . . . . 62 . . . Melee 213 | . . . . . 53 66 94 Knockbacks 1 | . . . . . . 1 . Impact 1 | . . . . . . 1 . Kinetic . | . . . . . . . . Secondary . | . . . . . . . . Self-Inflicted Damage 304 | . . . 35 262 . . 7 Shots 5 | . . . 1 4 . . . Rammed 6 | . . . 4 . . . 2 Targets Rammed 6 | . . . 4 . . . 2 Kicked . | . . . . . . . . Crushed . | . . . . . . . . Highest Temperature 450 | . . 450 378 72 . . 10 Average Temperature 83 | . . 67 108 27 . . 4 Received Heat Transfer 1799 | . 120 309 357 233 . 27 753 Effects 3 | . . 2 1 . . . . Shutdowns 1 | . . . 1 . . . . Interference 2 | . . 2 . . . . . Siege Activations . | . . . . . . . . Robots Corrupted 1 | . . 1 . . . . . Combat Hostiles 1 | . . 1 . . . . . Parts Fried 8 | . . 2 . . . 4 2 Impact Corruptions 12 | . . . . . 2 4 6 Robots Melted . | . . . . . . . . Combat Hostiles . | . . . . . . . . Parts Melted . | . . . . . . . . Heat Transferred 174 | . . . 50 50 . . 74 Parts Sabotaged . | . . . . . . . . Parts Stolen . | . . . . . . . . Parts Stripped . | . . . . . . . . Power Chain Reactions 1 | . . . 1 . . . . Missiles Intercepted . | . . . . . . . . Alert | -11 -10 -9 -9 -8 -7 -6 -6 ------- Run | Scr Mat Mat Sto Mat Fac Fac Ext Peak Influence 546 | . 238 291 364 546 343 255 279 Initial 225 | . . 100 122 149 225 163 124 Average 216 | . 131 191 225 325 271 214 215 Maximum Alert Level 2 | . 1 1 1 2 1 1 1 Low Security (%) 35 | . 50 47 34 22 . 28 27 Level 1 62 | . 49 52 65 56 100 71 72 Level 2 1 | . . . . 21 . . . Level 3 . | . . . . . . . . Level 4 . | . . . . . . . . Level 5 . | . . . . . . . . High Security . | . . . . . . . . Max Security . | . . . . . . . . Squads Dispatched 19 | . 4 2 6 2 2 . 3 Investigation 8 | . 2 1 . 1 2 . 2 Extermination . | . . . . . . . . Reinforcement 8 | . 2 1 3 1 . . 1 Assault . | . . . . . . . . Garrison 3 | . . . 3 . . . . Intercept . | . . . . . . . . Construction Impeded . | . . . . . . . . Haulers Reinforced . | . . . . . . . . Active Scanning Responses . | . . . . . . . . Cargo Convoy Interrupts . | . . . . . . . . Stealth | -11 -10 -9 -9 -8 -7 -6 -6 --------- Run | Scr Mat Mat Sto Mat Fac Fac Ext Distress Signals 9 | . . 2 4 2 . . 1 Communications Jammed . | . . . . . . . . Distress Signals . | . . . . . . . . Times Spotted 141 | . 11 27 31 24 12 4 32 Peak Tracking Total 15 | . 4 3 4 8 4 3 15 Tactical Retreats 26 | . 2 4 3 5 3 2 7 Traps | -11 -10 -9 -9 -8 -7 -6 -6 ------- Run | Scr Mat Mat Sto Mat Fac Fac Ext Traps Triggered 4 | . . . 1 . . 1 2 Indirectly . | . . . . . . . . Trap Hack Attempts . | . . . . . . . . Triggered . | . . . . . . . . Disarmed . | . . . . . . . . Reprogrammed 5 | . 4 . 1 . . . . Reused 1 | . 1 . . . . . . Traps Extracted . | . . . . . . . . Installed . | . . . . . . . . Triggered 2 | . 1 1 . . . . . Machines | -11 -10 -9 -9 -8 -7 -6 -6 ---------- Run | Scr Mat Mat Sto Mat Fac Fac Ext Machines Disabled 6 | . . . 1 4 . . 1 Max in Single Turn 2 | . . . 1 2 . . 1 Machines Sabotaged . | . . . . . . . . Garrisons Compromised . | . . . . . . . . Overloaded Fab Kills . | . . . . . . . . Hacking | -11 -10 -9 -9 -8 -7 -6 -6 --------- Run | Scr Mat Mat Sto Mat Fac Fac Ext Machines Accessed 18 | . 2 2 7 1 3 . 3 Terminals 13 | . 2 2 5 . 1 . 3 Fabricators . | . . . . . . . . Repair Stations 2 | . . . 1 . 1 . . Recycling Units 2 | . . . 1 . 1 . . Scanalyzers 1 | . . . . 1 . . . Garrison Access . | . . . . . . . . Total Hacks 58 | . 9 10 22 3 8 . 6 Successful 36 | . 7 7 18 3 . . 1 Failed 22 | . 2 3 4 . 8 . 5 Catastrophic 2 | . . . 1 . . . 1 Database Lockouts . | . . . . . . . . Manual 7 | . 1 2 4 . . . . Terminals 40 | . 9 10 13 . 2 . 6 Fabricators . | . . . . . . . . Repair Stations 9 | . . . 6 . 3 . . Recycling Units 6 | . . . 3 . 3 . . Scanalyzers 3 | . . . . 3 . . . Garrison Access . | . . . . . . . . Terminal Hacks 19 | . 6 5 7 . . . 1 Prototype ID Bank 2 | . 1 1 . . . . . Open Door 3 | . . . 2 . . . 1 Branch Access Points 2 | . 1 1 . . . . . Emergency Access Points 1 | . 1 . . . . . . Unreport Threat 2 | . . . 2 . . . . Locate Traps 2 | . 1 . 1 . . . . Reprogram Traps 2 | . 1 . 1 . . . . Investigation Status 1 | . . 1 . . . . . Registered Prototypes 1 | . . 1 . . . . . Zone Layout 3 | . 1 1 1 . . . . Fabricator Hacks . | . . . . . . . . Repair Station Hacks 6 | . . . 6 . . . . Scan Component 3 | . . . 3 . . . . Repair 3 | . . . 3 . . . . Recycling Unit Hacks 3 | . . . 3 . . . . Process 1 | . . . 1 . . . . Report Inventory 1 | . . . 1 . . . . Retrieve Matter 1 | . . . 1 . . . . Scanalyzer 3 | . . . . 3 . . . Insert Component 2 | . . . . 2 . . . Analyze 1 | . . . . 1 . . . Garrison Access Hacks . | . . . . . . . . Unauthorized Hacks 5 | . 1 2 2 . . . . Terminals 5 | . 1 2 2 . . . . Botnet 5 | . 1 2 2 . . . . Fabricators . | . . . . . . . . Repair Stations . | . . . . . . . . Recycling Units . | . . . . . . . . Scanalyzers . | . . . . . . . . Garrison Access . | . . . . . . . . Data Cores Recovered . | . . . . . . . . Used . | . . . . . . . . Hacking Detections 13 | . 2 1 3 1 3 . 3 Full Trace Events 6 | . 1 . . 1 2 . 2 Feedback Events . | . . . . . . . . Feedback Blocked . | . . . . . . . . Robot Schematics Acquired . | . . . . . . . . Robots Built . | . . . . . . . . Authchips . | . . . . . . . . Time . | . . . . . . . . Total Robot Build Rating . | . . . . . . . . Part Schematics Acquired 1 | . . . . 1 . . . Parts Built . | . . . . . . . . Authchips . | . . . . . . . . Time . | . . . . . . . . Total Part Build Rating . | . . . . . . . . Parts Repaired 3 | . . . 3 . . . . Time 96 | . . . 96 . . . . Parts Recycled . | . . . . . . . . Recycled Matter 222 | . . . 222 . . . . Retrieved Matter 257 | . . . 257 . . . . Retrieved Components . | . . . . . . . . Parts Scanalyzed 1 | . . . . 1 . . . Part Schematics Acquired 1 | . . . . 1 . . . Parts Damaged . | . . . . . . . . Bothacking | -11 -10 -9 -9 -8 -7 -6 -6 ------------ Run | Scr Mat Mat Sto Mat Fac Fac Ext Used RIF Installer . | . . . . . . . . Robots Hacked . | . . . . . . . . Non-combat . | . . . . . . . . Combat . | . . . . . . . . Robot Hacks Applied . | . . . . . . . . Relay Couplers Released . | . . . . . . . . Robots Rewired 4 | . . . . . . . 4 Allies Hacked . | . . . . . . . . Hacks Repelled . | . . . . . . . . Allies | -11 -10 -9 -9 -8 -7 -6 -6 -------- Run | Scr Mat Mat Sto Mat Fac Fac Ext Total Allies 16 | . . . 10 . . . 6 Largest Group 10 | . . . 10 7 . . 4 Highest-Rated Group 112 | . . . 88 56 . . 112 Highest-Rated Ally 31 | . . . 16 8 . . 31 Total Orders . | . . . . . . . . Ally Attacks 104 | . . . 67 20 . . 17 Total Damage 962 | . . . 569 144 . . 249 Kills 15 | . . . 14 1 . . . Allies Corrupted . | . . . . . . . . Allies Melted . | . . . . . . . . Intel | -11 -10 -9 -9 -8 -7 -6 -6 ------- Run | Scr Mat Mat Sto Mat Fac Fac Ext Robot Analysis Total . | . . . . . . . . Derelict Logs Recovered . | . . . . . . . . Drone Launches . | . . . . . . . . Drone Recoveries . | . . . . . . . . Exploration | -11 -10 -9 -9 -8 -7 -6 -6 ------------- Run | Scr Mat Mat Sto Mat Fac Fac Ext Turns Passed 4391 | . 324 1174 1437 351 180 264 661 Spaces Moved 2211 | 1 160 391 366 326 394 196 377 Core 365 | . . . . 9 23 173 160 Treads 950 | . 133 391 366 58 . . 2 Legs 88 | 1 27 . . . . . 60 Wheels . | . . . . . . . . Hover 178 | . . . . . . 23 155 Flight 630 | . . . . 259 371 . . Fastest Speed 32 | 120 120 160 320 32 34 50 50 Average Speed 160 | 120 153 263 320 84 36 120 116 Slowest Speed 2240 | 120 190 320 480 2240 150 750 200 Overloaded Moves . | . . . . . . . . Propulsion Burnouts . | . . . . . . . . Robots Hopped 5 | . . . . 2 3 . . Cave-ins Triggered . | . . . . . . . . Exploration Rate (%) 31 | 2 26 29 81 37 13 9 51 Regions Visited 7 Branch Regions 2 Pre-discovered Areas . | . . . . . . . . Known Exits Taken 1 | . . 1 . . . . . Unknown Exits Taken 6 | 1 1 . 1 1 1 1 . Scrap Searched . | . . . . . . . . Spaces Dug 5 | . . . . . 3 2 . Terrain Destroyed 107 | . . . 22 80 3 2 . Melee 5 | . . . . . 3 2 . Projectile . | . . . . . . . . AOE 102 | . . . 22 80 . . . Terrain Rammed . | . . . . . . . . Walls Destroyed . | . . . . . . . . Machines Disabled . | . . . . . . . . Actions | -11 -10 -9 -9 -8 -7 -6 -6 --------- Run | Scr Mat Mat Sto Mat Fac Fac Ext Total 2721 | . 204 466 524 378 411 209 529 Wait 109 | . 8 9 81 2 . . 9 Move 2194 | . 159 390 365 321 387 195 377 Hop 5 | . . . . 2 3 . . Pick Up 24 | . 2 6 6 5 2 . 3 Fast Attach 36 | . 3 4 4 5 2 6 12 Attach 27 | . . 4 4 9 5 . 5 Detach 14 | . 2 2 1 7 1 . 1 Swap 21 | . 6 10 4 1 . . . Drop 24 | . 7 1 4 11 . . 1 Fire 131 | . 17 40 49 15 . . 10 Melee 56 | . . . . . 11 8 37 Ram 2 | . . . . . . . 2 Kick . | . . . . . . . . Crush 4 | . . . 4 . . . . Escape Stasis 28 | . . . 2 . . . 26 Rewire 46 | . . . . . . . 46 Trap . | . . . . . . . . Miscellaneous . | . . . . . . . . Route ------- -11/Scrapyard -10/Materials (discovered 3 exits: *Mat / Min x2) -9/Materials (discovered 2 exits: Min / *Sto) -9/Storage -8/Materials -7/Factory -6/Factory -6/Extension History --------- Turn | Location | Event 1 | -11/Scrapyard | Discovered new exit (range 0) 1 | -11/Scrapyard | Entered Materials 54 | -10/Materials | Identified exit to Mines 254 | -10/Materials | Discovered new exit (range 16) 315 | -10/Materials | Build established: Mutant 325 | -10/Materials | Entered another Materials area 325 | -9/Materials | Evolved 2 slots: Utility x2 736 | -9/Materials | Identified exit to Mines 736 | -9/Materials | Identified exit to Storage 1499 | -9/Materials | Entered Storage 2269 | -9/Storage | Repaired Hrd. Light Armor Plating 2302 | -9/Storage | Repaired Hvy. Assault Rifle 2336 | -9/Storage | Repaired Hrd. Light Armor Plating 2475 | -9/Storage | Assisted by bots powering up and referring to "LRC-V3" 2554 | -9/Storage | Garrison activated, responded to threat 2773 | -9/Storage | Build established: Commander-Mutant 2894 | -9/Storage | Discovered new exit (range 14) 2936 | -9/Storage | Entered Materials 2936 | -8/Materials | Accompanied by 7 allies 2936 | -8/Materials | Evolved 2 slots: Propulsion x1, Utility x1 3282 | -8/Materials | Discovered new exit (range 10) 3287 | -8/Materials | Entered Factory 3287 | -7/Factory | Evolved 2 slots: Power x1, Propulsion x1 3314 | -7/Factory | Lost 5 parts (1p2n2u) 3455 | -7/Factory | Core integrity fell below 50% 3459 | -7/Factory | Discovered new exit (range 16) 3467 | -7/Factory | Entered another Factory area 3467 | -6/Factory | Evolved 2 slots: Propulsion x1, Utility x1 3476 | -6/Factory | Lost 5 parts (1p3n1w) 3591 | -6/Factory | Build established: Mutant 3715 | -6/Factory | Discovered new exit (range 11) 3731 | -6/Factory | Entered Extension 3907 | -6/Extension | Rescued a captive Derelict 3908 | -6/Extension | Rescued a captive Derelict 4078 | -6/Extension | Spotted B-75 Beast 4081 | -6/Extension | Spotted B-75 Beast 4083 | -6/Extension | Core integrity fell below 50% 4089 | -6/Extension | Core integrity fell below 20% 4125 | -6/Extension | Lost 10 parts (3p3n3u1w) 4147 | -6/Extension | Disrupted transfer network 4392 | -6/Extension | Destroyed by Y-54 Guardian with Gatling Laser Last Messages --------------- 04332_ IA-HSM(l) destroyed. 04332_ Acquired Carbon-fiber Leg. 04334_ Acquired 20 matter. 04336_ Acquired Carbon-fiber Leg. 04339_ Imp. Treads destroyed. 04340_ Acquired 5 matter. 04341_ Y-54 Guardian destroyed. 04350_ Acquired Imp. Carbon-fiber Leg. 04353_ R-10 Processor collects Imp. Deuterium Engine. 04356_ Acquired Imp. Light Armor Plating. 04356_ R-10 Processor collects Imp. Heat Sink. 04359_ Acquired 20 matter. 04360_ R-10 Processor collects Melee Analysis Suite. 04364_ R-10 Processor collects Imp. Heat Sink. 04367_ R-10 Processor collects Great Maul. 04376_ R-10 Processor collects Imp. Light Armor Plating. 04381_ U-05 Engineer lays Concrete. 04388_ W-25 Informer sends out distress signal. 04389_ U-05 Engineer builds a Door. 04390_ Critical hit (Burn: +37). Map ----- +----------------------------------------------------+ | | | | | | | | | | | | | | | | | | | | | | | | | | | | | | | | | | | | | | | | | | | ?????????????????????????????#########????????#### | | ???????????????????#######???# #????????# | | ???????????????????# ##### ########## | | ####################= Y "" | | + ^^[%=[R% !%! @ * T" w | | # *!############ % %= g | | #* [ #??????????# u ##### g########## | | + ^ #????????#####+###???# #????????# | | #% ^ #????????#! #????##+#/####????????#### | | #%##### ###??????# ! %%#????? ?????????????? | | # #??#T #??????#" ##???? ???????????? | | # #??## ##??????#T ||%!#??? ???????????# * | | # #???# #???????#" || ##?? ???????????# == | | =#???####???????# || !#?? ??????????# = | | ###??????????????########?# ??????????# | | ??????????????????????????# / * ?????????# | | ??????????????????????????? ?????????# | | ??????????????????????????# * ????????##### | | ??????????????????????????# ????????????? | | ??????????????????????????# ???????????? | | ??????????????????????????############???????????? | | ?????????????????????????????????????????????????? | | ?????????????????????????????????????????????????? | | ?????????????????????????????????????????????????? | | ?????????????????????????????????????????????????? | | ?????????????????????????????????????????????????? | | ?????????????????????????????????????????????????? | | ?????????????????????????????????????????????????? | | ?????????????????????????????????????????????????? | +----------------------------------------------------+ Best States ------------- Heat Dissipation 56 Energy Generation 28 Energy Capacity 465 Matter Stores 300 Matter Capacity 300 Sight Range 16 Robot Scan Range 15 Terrain Scan Density 10 ECM Strength 1 Armor Coverage 1200 Evasion (%) 63 Recoil Reduction 3 Particle Charging 15 Item Schematics ----------------- Lgt. Treads | -8/Materials | Scanalyzed Robot Schematics ------------------ None Fabricated ------------ Nothing Alien Tech Used ----------------- None Achievements -------------- Slippery One Challenges ------------ None Game ------ Seed BiocellHypervelocityInjector Manual? 0 Play Time 00:46:56 Cumulative 24.9 hours Start 2021.11.08 @ 21:13:18 End 2021.11.08 @ 21:56:58 Sessions 1 Manual Loads 0 Difficulty Rogue Special Mode None Game No. 19 Rogue 7 Adventurer 0 Explorer 12 Win Type - Total 1 Types 1/0/0/0/0/0/0/0/0 Lore% 21 Gallery% 29 Achievement% 28 Wizard Run 0 Options --------- ASCII 0 Keyboard 1 Movement Vi Keybinds 0 Fullscreen 1 Font 36/Smallcaps Map View 76x50 Tactical HUD 1 Map Filters NONE Filters NONE Steam 1 RUN: 1884577a-cbfe-42b3-8ac1-c5ef192f943d